Cogmind - Beta 9.6 @@@ ROGUE MODE // 2020.06.02 @ 18:22:45 Player: pGoos Result: Destroyed by G-34 Mercenary with Small Laser Performance ------------- Evolutions (0) 0 Regions Visited (1) 200 Robots Destroyed (9) 45 Value Destroyed (229) 229 Prototype IDs (2) 40 Alien Tech Used (0) 0 Bonus (0) 0 TOTAL SCORE: 514 Bonus ------- None Cogmind --------- Core Integrity 0/250 Matter 226/300 Energy 125/125 System Corruption 0% Temperature Cool (6) Movement Walking (120) Location -10/Materials Parts ------- > --- POWER (1) -------- Light Ion Engine > --- PROPULSION (2) --- Aluminum Leg Aluminum Leg > --- UTILITY (2) ------ Small Storage Unit Core Shielding > --- WEAPON (2) ------- Light Assault Rifle > --- INVENTORY (6) ---- Light Ion Engine Aluminum Leg Wheel Flight Unit Large Matter Pod (108) Peak State ------------ > --- POWER ------------ Light Ion Engine > --- PROPULSION ------- Light Treads Light Treads > --- UTILITY ---------- Improved Heat Sink Small Storage Unit > --- WEAPON ----------- EM Pulse Gun Assault Rifle > --- INVENTORY -------- Light Ion Engine Aluminum Leg Aluminum Leg Aluminum Leg Aluminum Leg Wheel [Rating: 9] Favorites ----------- Power Light Ion Engine Engine Light Ion Engine Propulsion Light Treads Treads Light Treads Leg Aluminum Leg Wheel Wheel Flight Unit Flight Unit Utility Small Storage Unit Device Improved Heat Sink Storage Small Storage Unit Protection Core Shielding Weapon Assault Rifle Energy Gun EM Pulse Gun Ballistic Gun Assault Rifle Build | -11 -10 ------- Run | Scr Mat Slots Evolved . | . . Power . | . . Propulsion . | . . Utility . | . . Weapon . | . . Parts Attached 17 | 8 9 Power 3 | 1 2 Engine 3 | 1 2 Core . | . . Reactor . | . . Propulsion 8 | 4 4 Treads 2 | 2 . Leg 2 | . 2 Wheel 2 | 2 . Hover . | . . Flight 2 | . 2 Utility 3 | 1 2 Device 1 | . 1 Storage 1 | 1 . Processor . | . . Hackware . | . . Protection 1 | . 1 Artifact . | . . Weapon 3 | 2 1 Energy Gun 1 | 1 . Energy Cannon . | . . Ballistic Gun 2 | 1 1 Ballistic Cannon . | . . Launcher . | . . Special Weapon . | . . Impact Weapon . | . . Slashing Weapon . | . . Piercing Weapon . | . . Special Melee Weapon . | . . Unidentified Prototypes . | . . Parts Lost 6 | . 6 Power 1 | . 1 Propulsion 3 | . 3 Utility . | . . Weapon 2 | . 2 Highest Loss Streak 3 | . 3 Average Slot Usage (%) 83 | . 83 Engine 13 | . 13 Treads 23 | . 23 Leg 1 | . 1 Device 1 | . 1 Storage 14 | . 14 Protection 9 | . 9 Energy Gun 4 | . 4 Ballistic Gun 14 | . 14 Naked Turns . | . . Heaviest Build 12 | 11 12 Greatest Support 40 | 40 40 Greatest Overweight (x) 3 | 2 3 Average Overweight (x) . | . . Largest Inventory Capacity 6 | 6 6 Average Capacity 5 | 5 6 Most Carried 6 | 6 6 Average Carried 5 | 4 5 Final Capacity 6 | 6 6 Final Carried 6 | 6 5 Class Distribution -------------------- 100% | Mutant Dominant Class ---------------- Mutant | -10/Materials Resources | -11 -10 ----------- Run | Scr Mat Matter Collected 378 | 272 106 Remotely . | . . Salvage Created 323 | 46 277 Parts 11 | 1 10 Haulers Intercepted . | . . Recyclers Shooed 1 | . 1 Parts Field Recycled . | . . Retrieved Matter . | . . Parts Self-Destructed . | . . Prevented . | . . Kills | -11 -10 ------- Run | Scr Mat Combat Hostiles Destroyed 8 | . 8 Melee 1 | . 1 Guns 7 | . 7 Classes Destroyed 3 | 1 2 Recycler 1 | 1 . Swarmer 3 | . 3 Grunt 5 | . 5 Best Kill Streak 2 | 1 2 Combat Bots Only 2 | . 2 Max Kills in Single Turn 1 | 1 1 Gunslinging . | . . Exploded . | . . Melee 1 | . 1 Uniques/NPCs Destroyed . | . . Combat | -11 -10 -------- Run | Scr Mat Damage Taken 910 | . 910 Core 259 | . 259 Absorbed by Shields . | . . Core Remaining (%) 100 | 100 . Volleys Fired 41 | . 41 Largest 2 | . 2 Hottest 60 | . 60 Shots Fired 57 | . 57 Gun 57 | . 57 Cannon . | . . Launcher . | . . Special . | . . Kinetic 46 | . 46 Thermal . | . . Explosive . | . . Electromagnetic 11 | . 11 Robot Hit Streak 15 | . 15 Robot Miss Streak 3 | . 3 Penetration Max . | . . Secondary Targets . | . . Shots Hit Robots 46 | . 46 Core Hits 22 | 2 20 Critical Hits . | . . Critical Kills . | . . Critical Parts Destroyed . | . . Melee Attacks . | . . Impact . | . . Slashing . | . . Piercing . | . . Sneak Attacks . | . . Combat Hostiles . | . . Follow-up Attacks . | . . Damage Inflicted 743 | 8 735 Guns 558 | . 558 Cannons . | . . Explosions 135 | . 135 Melee . | . . Ramming 50 | 8 42 Kinetic 427 | . 427 Thermal 135 | . 135 Explosive . | . . Electromagnetic 131 | . 131 Impact . | . . Slashing . | . . Piercing . | . . Highest Corruption . | . . Average Corruption . | . . Corruption Purged . | . . Overload Shots . | . . Overflow Damage . | . . Projectiles . | . . Explosions . | . . Melee . | . . Knockbacks . | . . Impact . | . . Kinetic . | . . Secondary . | . . Self-Inflicted Damage 97 | . 97 Shots 2 | . 2 Rammed 35 | 5 30 Targets Rammed 37 | 6 31 Kicked . | . . Crushed 2 | 1 1 Highest Temperature 69 | . 69 Average Temperature 37 | . 37 Received Heat Transfer 201 | . 201 Siege Activations . | . . Robots Corrupted . | . . Combat Hostiles . | . . Parts Fried . | . . Impact Corruptions . | . . Robots Melted . | . . Combat Hostiles . | . . Parts Melted . | . . Heat Transferred 200 | . 200 Parts Sabotaged . | . . Parts Stolen . | . . Parts Stripped . | . . Power Chain Reactions 2 | . 2 Missiles Intercepted . | . . Alert | -11 -10 ------- Run | Scr Mat Peak Influence 120 | 5 120 Average Influence 38 | 3 46 Maximum Alert Level . | . . Low Security (%) 100 | 100 100 Level 1 . | . . Level 2 . | . . Level 3 . | . . Level 4 . | . . Level 5 . | . . High Security . | . . Max Security . | . . Squads Dispatched 2 | . 2 Investigation . | . . Extermination . | . . Reinforcement 2 | . 2 Assault . | . . Garrison . | . . Intercept . | . . Construction Impeded . | . . Haulers Reinforced . | . . Stealth | -11 -10 --------- Run | Scr Mat Distress Signals . | . . Communications Jammed . | . . Distress Signals . | . . Times Spotted 12 | . 12 Peak Tracking Total 3 | . 3 Tactical Retreats 1 | . 1 Traps | -11 -10 ------- Run | Scr Mat Traps Triggered . | . . Indirectly . | . . Trap Hack Attempts . | . . Triggered . | . . Disarmed . | . . Reprogrammed . | . . Reused . | . . Traps Extracted . | . . Installed . | . . Triggered . | . . Machines | -11 -10 ---------- Run | Scr Mat Machines Disabled 1 | . 1 Max in Single Turn 1 | . 1 Machines Sabotaged . | . . Garrisons Compromised . | . . Overloaded Fab Kills . | . . Fab Network Shutdowns . | . . Hacking | -11 -10 --------- Run | Scr Mat Machines Accessed 4 | . 4 Terminals 3 | . 3 Fabricators . | . . Repair Stations 1 | . 1 Recycling Units . | . . Scanalyzers . | . . Garrison Access . | . . Total Hacks 15 | . 15 Successful 10 | . 10 Failed 5 | . 5 Catastrophic 1 | . 1 Database Lockouts . | . . Manual . | . . Terminals 14 | . 14 Fabricators . | . . Repair Stations 1 | . 1 Recycling Units . | . . Scanalyzers . | . . Garrison Access . | . . Terminal Hacks 10 | . 10 Prototype ID Bank 1 | . 1 Branch Access Points 1 | . 1 Alert Level 2 | . 2 Unreport Threat 1 | . 1 Patrol Status 1 | . 1 Reinforcement Status 1 | . 1 Recall Reinforcements 1 | . 1 Hauler Manifests 1 | . 1 Zone Layout 1 | . 1 Fabricator Hacks . | . . Repair Station Hacks . | . . Recycling Unit Hacks . | . . Scanalyzer . | . . Garrison Access Hacks . | . . Unauthorized Hacks . | . . Terminals . | . . Fabricators . | . . Repair Stations . | . . Recycling Units . | . . Scanalyzers . | . . Garrison Access . | . . Data Cores Recovered . | . . Used . | . . Hacking Detections 2 | . 2 Full Trace Events . | . . Feedback Events . | . . Feedback Blocked . | . . Robot Schematics Acquired . | . . Robots Built . | . . Matter . | . . Time . | . . Total Robot Build Rating . | . . Part Schematics Acquired . | . . Parts Built . | . . Matter . | . . Time . | . . Total Part Build Rating . | . . Parts Repaired . | . . Time . | . . Parts Recycled . | . . Recycled Matter . | . . Retrieved Matter . | . . Retrieved Components . | . . Parts Scanalyzed . | . . Part Schematics Acquired . | . . Parts Damaged . | . . Bothacking | -11 -10 ------------ Run | Scr Mat Used RIF Installer . | . . Robots Hacked . | . . Non-combat . | . . Combat . | . . Robot Hacks Applied . | . . Relay Couplers Released . | . . Robots Rewired . | . . Allies Hacked . | . . Hacks Repelled . | . . Allies | -11 -10 -------- Run | Scr Mat Total Allies . | . . Largest Group . | . . Highest-Rated Group . | . . Highest-Rated Ally . | . . Total Orders . | . . Ally Attacks . | . . Total Damage . | . . Kills . | . . Allies Corrupted . | . . Allies Melted . | . . Intel | -11 -10 ------- Run | Scr Mat Robot Analysis Total . | . . Derelict Logs Recovered . | . . Drone Launches . | . . Drone Recoveries . | . . Exploration | -11 -10 ------------- Run | Scr Mat Turns Passed 689 | 136 553 Spaces Moved 309 | 79 230 Core 11 | 9 2 Treads 276 | 57 219 Legs . | . . Wheels 13 | 13 . Hover . | . . Flight 9 | . 9 Fastest Speed 50 | 50 120 Average Speed 154 | 136 160 Slowest Speed 200 | 160 200 Overloaded Moves . | . . Propulsion Burnouts . | . . Robots Hopped . | . . Cave-ins Triggered . | . . Exploration Rate (%) 16 | 5 27 Regions Visited 1 Branch Regions . Pre-discovered Areas . | . . Known Exits Taken . | . . Unknown Exits Taken 1 | 1 . Scrap Searched . | . . Spaces Dug . | . . Terrain Destroyed 6 | . 6 Melee . | . . Projectile . | . . AOE 6 | . 6 Actions | -11 -10 --------- Run | Scr Mat Total 436 | 101 335 Wait 18 | 2 16 Move 308 | 78 230 Hop . | . . Pick Up 8 | 5 3 Fast Attach 13 | 7 6 Attach 3 | 1 2 Detach 3 | 2 1 Swap 1 | . 1 Drop 4 | . 4 Fire 41 | . 41 Melee . | . . Ram 13 | . 13 Kick . | . . Crush 24 | 6 18 Escape Stasis . | . . Rewire . | . . Trap . | . . Miscellaneous . | . . Route ------- -11/Scrapyard -10/Materials (discovered 1 exit: Min) History --------- Turn | Location | Event 29 | -11/Scrapyard | Discovered new exit (range 16) 137 | -11/Scrapyard | Entered Materials 158 | -10/Materials | Identified exit to Mines 310 | -10/Materials | Build established: Mutant 560 | -10/Materials | Core integrity fell below 50% 630 | -10/Materials | Core integrity fell below 20% 690 | -10/Materials | Destroyed by G-34 Mercenary with Small Laser Last Messages --------------- 00590_ Crushed S-10 Pest. 00590_ S-10 Pest destroyed. 00591_ Acquired 15 matter. 00594_ Slammed into S-10 Pest. 00604_ Lgt. Treads destroyed. 00606_ Slammed into S-10 Pest. 00606_ Lgt. Treads destroyed. 00607_ Slammed into S-10 Pest. 00629_ Destabilizing: Core damaged (-12). 00631_ Slammed into S-10 Pest. 00637_ S-10 Pest destroyed. 00639_ Acquired 20 matter. 00641_ Lgt. Ion Engine destroyed. 00643_ Acquired Flight Unit. 00651_ Acquired Lgt. Ion Engine. 00654_ Acquired Lgt. Assault Rifle. 00658_ Acquired Flight Unit. 00659_ Flight Unit destroyed. 00682_ Assault Rifle destroyed. 00684_ G-34 Mercenary destroyed. Map ----- +----------------------------------------------------+ | | | | | | | | | | | ??????????????????????????????????????? | | ??????????????????????????????????????? | | ??????????????????????????????????????? | | ???????????????????????###????????????? | | ???????????????????????? ??????????? | | ?????????????????????????? ?????????? | | ???????????????????????????? ####????? | | ?????????????????????????????? ###### | | ???????????????????????????????# # # | | ???????????????????????????????# # # | | ???????????????????????????????# # # | | ???????????????????????????????# # # | | ???????????????????????????????# # # | | ???????????????????????????????# # ""# | | ??????????????????????########?# # T"# | | ??????????????????????# #?# # ""# | | ??????????????????????# """ #?# + # | | ??????????????????????# ""R" #?# ###### | | ???????????? ???????# "" " #?# ###### | | ?????????? ???????# #?# # # | | ??????????" ???????# @% #?# # # | | ?????????"" ?##########g##### # # | | ?????????"" # | | ????????? ?########## ####### # | | ????????? ??????????# #?????###### | | ??????? """ #?????????# #??????????? | | ????????""" #?????????# #??????????? | | ?????????"" #?????????# #??????????? | | ?????????? /?????????# #??????????? | | ??????????? #?????????# #??????????? | | ???????????# #?????????# #????##????? | | ???????????# #?????????# #??? #####? | | ???????????# #?????????# #??? # | | ???????????# ########### ### # | | ???????????# # # | | ???????????# ?? | | ???????????# # # | | ???????????#######+####### #? #?? | | ?????????????# # #?? #?? | | ?????????????# """ T # #########? | | ?????????????# """"" # #????????? | | ?????????????# """"" # #????????? | | ?????????????# """"" # #????????? | | ?????????????# """ # #????????? | | ?????????????# # #????????? | +----------------------------------------------------+ Best States ------------- Heat Dissipation 39 Energy Generation 10 Energy Capacity 125 Matter Stores 300 Matter Capacity 300 Sight Range 16 Terrain Scan Density 10 Core Shielding 20 Evasion (%) 44 Recoil Reduction 2 Item Schematics ----------------- None Robot Schematics ------------------ None Fabricated ------------ Nothing Alien Tech Used ----------------- None Achievements -------------- None Challenges ------------ None Game ------ Seed ThunderIonCompressor Manual? 0 Play Time 00:10:02 Cumulative 32.4 hours Start 2020.06.02 @ 18:14:14 End 2020.06.02 @ 18:22:45 Sessions 1 Manual Loads 0 Difficulty Rogue Special Mode None Game No. 46 Rogue 46 Adventurer 0 Explorer 0 Win Type - Total 0 Types 0/0/0/0/0/0/0 Lore% 20 Gallery% 28 Achievement% 19 Wizard Run 0 Options --------- ASCII 0 Keyboard 1 Movement Numpad Keybinds 0 Fullscreen 2 Font 24/Terminus Map View 113x50 Tactical HUD 1 Map Filters NONE Filters NONE Steam 1 RUN: 2f522638-a5dc-4271-b103-60da02dd2ffb